Cogmind - Beta 10.2 @@@ ROGUE MODE // 2021.01.14 @ 12:42:38 Player: WayneKnight Result: Destroyed by as-92808 with Assembled F-torch Performance ------------- Evolutions (0) 0 Regions Visited (2) 400 Robots Destroyed (18) 90 Value Destroyed (454) 454 Prototype IDs (2) 40 Alien Tech Used (0) 0 Bonus (0) 0 TOTAL SCORE: 984 Bonus ------- None Cogmind --------- Core Integrity 0/250 Matter 264/300 Energy 250/250 System Corruption 0% Temperature Cool (30) Movement Walking (180) Ox2 Location -10/Mines Parts ------- > --- POWER (1) -------- Ion Engine > --- PROPULSION (2) --- Improved Aluminum Leg Improved Aluminum Leg > --- UTILITY (2) ------ High-capacity Storage Unit High-capacity Storage Unit > --- WEAPON (2) ------- Heavy Assault Rifle Heavy Assault Rifle > --- INVENTORY (20) --- Ion Engine Light Ion Engine Light Treads Improved Aluminum Leg Combat Airjet Large Storage Unit Large Storage Unit Signal Interpreter EM Shotgun EM Shotgun Assault Rifle Assault Rifle Assault Rifle Assault Rifle Light Assault Rifle Heavy Assault Rifle Heavy Assault Rifle Grenade Launcher Rocket Launcher Peak State ------------ > --- POWER ------------ (None) > --- PROPULSION ------- Improved Aluminum Leg Improved Aluminum Leg > --- UTILITY ---------- High-capacity Storage Unit High-capacity Storage Unit > --- WEAPON ----------- Heavy Assault Rifle Heavy Assault Rifle > --- INVENTORY -------- Ion Engine Ion Engine Light Treads Improved Aluminum Leg Improved Aluminum Leg Combat Airjet Large Storage Unit Large Storage Unit Signal Interpreter EM Shotgun EM Shotgun Assault Rifle Assault Rifle Assault Rifle Assault Rifle Light Assault Rifle Heavy Assault Rifle Heavy Assault Rifle Rocket Launcher [Rating: 13] Favorites ----------- Power Ion Engine Engine Ion Engine Propulsion Light Treads Treads Light Treads Leg Improved Aluminum Leg Utility High-capacity Storage Unit Storage High-capacity Storage Unit Processor Salvage Targeting Computer Weapon Heavy Assault Rifle Energy Gun Medium Laser Ballistic Gun Heavy Assault Rifle Build | -11 -10 -10 ------- Run | Scr Mat Min Slots Evolved . | . . . Power . | . . . Propulsion . | . . . Utility . | . . . Weapon . | . . . Parts Attached 19 | 3 9 7 Power 2 | . . 2 Engine 2 | . . 2 Core . | . . . Reactor . | . . . Propulsion 6 | 2 1 3 Treads 3 | 2 1 . Leg 3 | . . 3 Wheel . | . . . Hover . | . . . Flight . | . . . Utility 6 | . 6 . Device . | . . . Storage 5 | . 5 . Processor 1 | . 1 . Hackware . | . . . Protection . | . . . Artifact . | . . . Weapon 5 | 1 2 2 Energy Gun . | . . . Energy Cannon . | . . . Ballistic Gun 5 | 1 2 2 Ballistic Cannon . | . . . Launcher . | . . . Special Weapon . | . . . Impact Weapon . | . . . Slashing Weapon . | . . . Piercing Weapon . | . . . Special Melee Weapon . | . . . Unidentified Prototypes . | . . . Parts Lost 2 | . . 2 Power 1 | . . 1 Propulsion 1 | . . 1 Utility . | . . . Weapon . | . . . Highest Loss Streak 2 | . . 2 Average Slot Usage (%) 98 | . 98 99 Engine 13 | . 14 13 Treads 23 | . 27 11 Leg 4 | . . 16 Storage 23 | . 22 28 Processor 3 | . 4 . Energy Gun 1 | . 1 . Ballistic Gun 26 | . 26 28 Naked Turns . | . . . Heaviest Build 75 | 13 75 75 Greatest Support 40 | 40 40 40 Greatest Overweight (x) 3 | . 1 3 Average Overweight (x) . | . . 1 Largest Inventory Capacity 20 | 6 20 20 Average Capacity 15 | 6 13 20 Most Carried 20 | 6 20 20 Average Carried 14 | 6 12 18 Final Capacity 20 | 6 20 20 Final Carried 20 | 6 20 19 Class Distribution -------------------- 61% | Hauler-Mutant 38% | Mutant Dominant Class ---------------- Mutant | -10/Materials Hauler-Mutant | -10/Mines Resources | -11 -10 -10 ----------- Run | Scr Mat Min Matter Collected 743 | 203 282 258 Remotely . | . . . Salvage Created 781 | 73 476 232 Parts 40 | 2 31 7 Haulers Intercepted 1 | . 1 . Recyclers Shooed . | . . . Parts Field Recycled . | . . . Retrieved Matter . | . . . Parts Self-Destructed . | . . . Prevented . | . . . Kills | -11 -10 -10 ------- Run | Scr Mat Min Combat Hostiles Destroyed 25 | . 10 15 Guns 25 | . 10 15 Classes Destroyed 7 | 1 4 2 Hauler 1 | . 1 . Recycler 1 | 1 . . Watcher 2 | . 2 . Swarmer 5 | . 3 2 Grunt 7 | . 7 . Demolisher 2 | . . 2 Assembled 11 | . . 11 Best Kill Streak 3 | 1 2 3 Combat Bots Only 3 | . 2 3 Max Kills in Single Turn 1 | 1 1 1 Gunslinging . | . . . Exploded . | . . . Melee . | . . . Uniques/NPCs Destroyed . | . . . Combat | -11 -10 -10 -------- Run | Scr Mat Min Damage Taken 1144 | . 185 959 Core 250 | . 39 211 Absorbed by Shields . | . . . Core Remaining (%) 100 | 100 . . Volleys Fired 73 | 3 31 39 Largest 2 | 2 2 2 Hottest 73 | 70 73 46 Shots Fired 146 | 6 62 78 Gun 146 | 6 62 78 Cannon . | . . . Launcher . | . . . Special . | . . . Kinetic 135 | 3 54 78 Thermal 11 | 3 8 . Explosive . | . . . Electromagnetic . | . . . Robot Hit Streak 20 | 4 20 5 Robot Miss Streak 4 | 1 2 4 Penetration Max . | . . . Secondary Targets 4 | . . 4 Max Gunslinging Chain 1 | . . 1 Shots Hit Robots 89 | 4 48 37 Core Hits 47 | 2 19 26 Critical Hits 1 | . . 1 Critical Kills 1 | . . 1 Critical Parts Destroyed . | . . . Melee Attacks . | . . . Impact . | . . . Slashing . | . . . Piercing . | . . . Sneak Attacks . | . . . Combat Hostiles . | . . . Follow-up Attacks . | . . . Damage Inflicted 1241 | 43 658 540 Guns 1232 | 43 649 540 Cannons . | . . . Explosions . | . . . Melee . | . . . Ramming 9 | . 9 . Kinetic 1102 | 18 544 540 Thermal 130 | 25 105 . Explosive . | . . . Electromagnetic . | . . . Impact . | . . . Slashing . | . . . Piercing . | . . . Highest Corruption . | . . . Average Corruption . | . . . Corruption Purged . | . . . Overload Shots . | . . . Overflow Damage . | . . . Projectiles . | . . . Explosions . | . . . Melee . | . . . Knockbacks . | . . . Impact . | . . . Kinetic . | . . . Secondary . | . . . Self-Inflicted Damage . | . . . Shots . | . . . Rammed 2 | . 2 . Targets Rammed 2 | . 2 . Kicked . | . . . Crushed . | . . . Highest Temperature 69 | 50 69 20 Average Temperature 22 | 26 23 11 Received Heat Transfer 146 | . 66 80 Siege Activations . | . . . Robots Corrupted . | . . . Combat Hostiles . | . . . Parts Fried . | . . . Impact Corruptions . | . . . Robots Melted . | . . . Combat Hostiles . | . . . Parts Melted . | . . . Heat Transferred 370 | 74 296 . Parts Sabotaged . | . . . Parts Stolen . | . . . Parts Stripped . | . . . Power Chain Reactions . | . . . Missiles Intercepted . | . . . Alert | -11 -10 -10 ------- Run | Scr Mat Min Peak Influence 299 | 5 299 80 Initial 3 | . 3 . Average 79 | 3 93 43 Maximum Alert Level 1 | . 1 . Low Security (%) 86 | 100 81 100 Level 1 13 | . 18 . Level 2 . | . . . Level 3 . | . . . Level 4 . | . . . Level 5 . | . . . High Security . | . . . Max Security . | . . . Squads Dispatched 6 | . 6 . Investigation 3 | . 3 . Extermination . | . . . Reinforcement 3 | . 3 . Assault . | . . . Garrison . | . . . Intercept . | . . . Construction Impeded . | . . . Haulers Reinforced . | . . . Stealth | -11 -10 -10 --------- Run | Scr Mat Min Distress Signals 1 | . 1 . Communications Jammed . | . . . Distress Signals . | . . . Times Spotted 35 | . 14 21 Peak Tracking Total 4 | . 3 4 Tactical Retreats 3 | . 1 2 Traps | -11 -10 -10 ------- Run | Scr Mat Min Traps Triggered 1 | . 1 . Indirectly . | . . . Trap Hack Attempts . | . . . Triggered . | . . . Disarmed . | . . . Reprogrammed . | . . . Reused . | . . . Traps Extracted . | . . . Installed . | . . . Triggered . | . . . Machines | -11 -10 -10 ---------- Run | Scr Mat Min Machines Disabled 2 | . 2 . Max in Single Turn 1 | . 1 . Machines Sabotaged . | . . . Garrisons Compromised . | . . . Overloaded Fab Kills . | . . . Fab Network Shutdowns . | . . . Hacking | -11 -10 -10 --------- Run | Scr Mat Min Machines Accessed 8 | . 8 . Terminals 5 | . 5 . Fabricators . | . . . Repair Stations 1 | . 1 . Recycling Units 2 | . 2 . Scanalyzers . | . . . Garrison Access . | . . . Total Hacks 26 | . 26 . Successful 16 | . 16 . Failed 10 | . 10 . Catastrophic . | . . . Database Lockouts . | . . . Manual 16 | . 16 . Terminals 19 | . 19 . Fabricators . | . . . Repair Stations 3 | . 3 . Recycling Units 4 | . 4 . Scanalyzers . | . . . Garrison Access . | . . . Terminal Hacks 5 | . 5 . Robot Analysis 2 | . 2 . Prototype ID Bank 1 | . 1 . Locate Traps 2 | . 2 . Fabricator Hacks . | . . . Repair Station Hacks 2 | . 2 . Scan Component 1 | . 1 . Repair 1 | . 1 . Recycling Unit Hacks 2 | . 2 . Report Inventory 2 | . 2 . Scanalyzer . | . . . Garrison Access Hacks . | . . . Unauthorized Hacks 7 | . 7 . Terminals 5 | . 5 . Track 2 | . 2 . Botnet 2 | . 2 . Operators 1 | . 1 . Fabricators . | . . . Repair Stations . | . . . Recycling Units 2 | . 2 . Tunnel 2 | . 2 . Scanalyzers . | . . . Garrison Access . | . . . Data Cores Recovered . | . . . Used . | . . . Hacking Detections 6 | . 6 . Full Trace Events . | . . . Feedback Events . | . . . Feedback Blocked . | . . . Robot Schematics Acquired . | . . . Robots Built . | . . . Matter . | . . . Time . | . . . Total Robot Build Rating . | . . . Part Schematics Acquired . | . . . Parts Built . | . . . Matter . | . . . Time . | . . . Total Part Build Rating . | . . . Parts Repaired 1 | . 1 . Time 13 | . 13 . Parts Recycled . | . . . Recycled Matter . | . . . Retrieved Matter . | . . . Retrieved Components . | . . . Parts Scanalyzed . | . . . Part Schematics Acquired . | . . . Parts Damaged . | . . . Bothacking | -11 -10 -10 ------------ Run | Scr Mat Min Used RIF Installer . | . . . Robots Hacked . | . . . Non-combat . | . . . Combat . | . . . Robot Hacks Applied . | . . . Relay Couplers Released . | . . . Robots Rewired . | . . . Allies Hacked . | . . . Hacks Repelled . | . . . Allies | -11 -10 -10 -------- Run | Scr Mat Min Total Allies . | . . . Largest Group . | . . . Highest-Rated Group . | . . . Highest-Rated Ally . | . . . Total Orders . | . . . Ally Attacks . | . . . Total Damage . | . . . Kills . | . . . Allies Corrupted . | . . . Allies Melted . | . . . Intel | -11 -10 -10 ------- Run | Scr Mat Min Robot Analysis Total 2 | . 2 . Derelict Logs Recovered 3 | . . 3 Drone Launches . | . . . Drone Recoveries . | . . . Exploration | -11 -10 -10 ------------- Run | Scr Mat Min Turns Passed 2374 | 27 1720 627 Spaces Moved 885 | 12 671 202 Core . | . . . Treads 807 | 1 671 135 Legs 78 | 11 . 67 Wheels . | . . . Hover . | . . . Flight . | . . . Fastest Speed 120 | 120 160 180 Average Speed 173 | 123 172 180 Slowest Speed 220 | 160 180 220 Overloaded Moves . | . . . Propulsion Burnouts . | . . . Robots Hopped . | . . . Cave-ins Triggered . | . . . Exploration Rate (%) 47 | 2 90 50 Regions Visited 2 Branch Regions 1 Pre-discovered Areas 4 | . 2 2 Known Exits Taken . | . . . Unknown Exits Taken 2 | 1 1 . Scrap Searched . | . . . Spaces Dug . | . . . Terrain Destroyed . | . . . Melee . | . . . Projectile . | . . . AOE . | . . . Terrain Rammed . | . . . Walls Destroyed . | . . . Machines Disabled . | . . . Actions | -11 -10 -10 --------- Run | Scr Mat Min Total 1574 | 17 1170 387 Wait 563 | . 430 133 Move 883 | 11 670 202 Hop . | . . . Pick Up 22 | . 18 4 Fast Attach 3 | . 3 . Attach 3 | . . 3 Detach 1 | . 1 . Swap 13 | 3 6 4 Drop 11 | . 9 2 Fire 73 | 3 31 39 Melee . | . . . Ram . | . . . Kick . | . . . Crush 2 | . 2 . Escape Stasis . | . . . Rewire . | . . . Trap . | . . . Miscellaneous . | . . . Route ------- -11/Scrapyard -10/Materials (discovered 4 exits: [*Mat x2] / [*Min x2]) -10/Mines (discovered 1 exit: [*Mat]) History --------- Turn | Location | Event 10 | -11/Scrapyard | Discovered new exit (range 3) 28 | -11/Scrapyard | Entered Materials 187 | -10/Materials | Discovered new exit (range 5) 190 | -10/Materials | Met 8R-AWN 281 | -10/Materials | Discovered new exit (range 9) 302 | -10/Materials | Build established: Mutant 692 | -10/Materials | Repaired Lgt. Treads 931 | -10/Materials | Discovered new exit (range 9) 1220 | -10/Materials | Build established: Hauler-Mutant 1605 | -10/Materials | Discovered new exit (range 16) 1748 | -10/Materials | Entered Mines 1751 | -10/Mines | Followed 8R-AWN into the Mines 1779 | -10/Mines | Received a Rocket Launcher from a helpful Derelict 1827 | -10/Mines | Learned location of Zion (-6) 1852 | -10/Mines | Discovered new exit (range 4) 1980 | -10/Mines | Learned Materials terminal intel 1983 | -10/Mines | Assembled infested the area 2186 | -10/Mines | Core integrity fell below 50% 2245 | -10/Mines | Core integrity fell below 20% 2375 | -10/Mines | Destroyed by as-92808 with Assembled F-torch Last Messages --------------- 02276_ R-06 Scavenger collects Wheel. 02279_ U-05 Engineer builds a Wall. 02280_ R-06 Scavenger collects Imp. Aluminum Leg. 02290_ R-06 Scavenger destroyed. 02293_ as-04588 destroyed. 02296_ as-97708 destroyed. 02299_ Extracted 50 matter. 02301_ Acquired 35 matter. 02305_ Acquired 6 matter. 02310_ as-76170 destroyed. 02311_ Acquired 6 matter. 02334_ U-05 Engineer builds a Wall. 02343_ Acquired Grenade Launcher. 02350_ Acquired Lgt. Ion Engine. 02364_ as-51925 destroyed. 02364_ Switching to secondary target: as-45649. 02369_ R-06 Scavenger heat spikes uncontrollably. 02370_ as-45649 suffers critical hit. 02370_ as-45649 destroyed. 02370_ Switching to secondary target: as-08974. Map ----- +----------------------------------------------------+ | ?????????????????????????????????????????????????? | | ?????????????????????????????????????????????????? | | ?????????????????????????????????????????????????? | | ?????????????????????????????????????????????????? | | ?????????????????????????????????????????????????? | | ?????????????????????????????????????????????????? | | ?????????????????????????????????????????????????? | | ?????????????????????????????????????????????????? | | ?????????????????????????????????????????????????? | | ?????????????????????????????????????????????????? | | ?????????????????????????????????????????????????? | | ?????????????????????????????????????????????????? | | ?????????????????????????????????????????????????? | | ?????????????????????????????????????????????????? | | ?????????????? ?????????????????????????????????? | | ??????????????? ????????????????????????????????? | | ???????????????? ???????????????????????????????? | | ???????????????## ??????????????????????????????? | | ???????????????? ?????????????????????????????? | | ?????????????????# ????????????????????????????? | | ?????????????????? #???????????????????????????? | | ???????????????????? #####??????????????????????? | | ????????????????????? a% ##?????????????????????? | | ??????????????????????r% ##????????????????????? | | ???????????????????????# ##???????????????????? | | ????????????????????????#@ #???????????????????? | | ???????????????????????## #???????????????????? | | ??????????????????????##% ##??????????????????? | | ??????????????????????#!!== ##?????????????????? | | ??????????????????????# %a ####??????????????? | | ??????????????????????##*! """ ##?????????????? | | ??????????????????????## """ #????????#????# | | ?????????????????????## """ #??????? ### # | | ????????????????????## """ ##?????? | | ????????????????##### == #####??# | | ???????????????## !!%% ### ### | | ???????????????# ! !%*%%! # """ ? | | ???????????????# !!%= =% =##==%=### """ # | | ???????####???# %=#########==#### # # """ # | | ?????### ##??# =!!#???????# %# ### # # | | ????## ##?###= #???????#=!##### #? | | ????# ##??#= #???????#!=! !# ####? | | ????# ##?# #?????#######=# ##???? | | ????# ### #????# #### # ##????? | | ???## ## #?### #?# # # # ##?????? | | ???# # ### #?# ##%# #####??????? | | #??# #?????# #?#??????????? | | #### #??????# #######?????????? | | ## ## #??????# #?## ####??????? | | ] ### ####### #??????# ### ##?????? | +----------------------------------------------------+ Best States ------------- Heat Dissipation 25 Energy Generation 10 Energy Capacity 250 Matter Stores 300 Matter Capacity 300 Sight Range 16 Terrain Scan Density 10 Evasion (%) 40 Recoil Reduction 2 Salvage Targeting 1 Item Schematics ----------------- None Robot Schematics ------------------ None Fabricated ------------ Nothing Alien Tech Used ----------------- None Achievements -------------- None Challenges ------------ None Game ------ Seed MetafiberRefineryBlade Manual? 0 Play Time 00:17:59 Cumulative 193.2 hours Start 2021.01.13 @ 22:17:08 End 2021.01.14 @ 12:42:38 Sessions 2 Manual Loads 0 Difficulty Rogue Special Mode None Game No. 142 Rogue 142 Adventurer 0 Explorer 0 Win Type - Total 4 Types 4/0/0/0/0/0/0/0/0 Lore% 48 Gallery% 61 Achievement% 45 Wizard Run 0 Options --------- ASCII 1 Keyboard 1 Movement Arrows Keybinds 0 Fullscreen 1 Font 24/Proggy Map View 76x50 Tactical HUD 1 Map Filters NONE Filters NONE Steam 1 RUN: be0e5a48-ff10-4b24-8018-70b3d8ab0a3b